[Event "December 19 Late 2023"]
[Site "https://www.chess.com"]
[Date "2023.12.19"]
[Round "7"]
[White "Porat, Tori"]
[Black "Kubatko, Ivan"]
[Result "0-1"]
[Board "127"]
[TimeControl "180+1"]
[WhiteFideId "30982626"]
[BlackFideId "24111473"]
[WhiteElo "1693"]
[BlackElo "2285"]
[WhiteTeam "USA"]
[BlackTeam "RUS"]
[WhiteClock "0:00:00"]
[BlackClock "0:00:03"]

1. d4 {[%clk 0:03:00]}  Nf6 {[%clk 0:02:59]} 2. c4 {[%clk 0:03:01]}  Nc6 {[%clk 0:02:59]} 3. Nc3 {[%clk 0:03:00]}  e5 {[%clk 0:02:59]} 4. dxe5 {[%clk 0:02:57]}  Nxe5 {[%clk 0:02:59]} 5. e4 {[%clk 0:02:56]}  Bc5 {[%clk 0:02:45]} 6. h3 {[%clk 0:02:45]}  d6 {[%clk 0:02:40]} 7. Nf3 {[%clk 0:02:43]}  O-O {[%clk 0:02:27]} 8. Bg5 {[%clk 0:02:41]}  h6 {[%clk 0:02:22]} 9. Bh4 {[%clk 0:02:41]}  Ng6 {[%clk 0:02:22]} 10. Bg3 {[%clk 0:02:38]}  Re8 {[%clk 0:02:18]} 11. Bd3 {[%clk 0:02:37]}  Bf5 {[%clk 0:02:02]} 12. O-O {[%clk 0:02:18]}  Nxe4 {[%clk 0:01:48]} 13. Nxe4 {[%clk 0:02:15]}  Bxe4 {[%clk 0:01:48]} 14. Bxe4 {[%clk 0:02:15]}  Rxe4 {[%clk 0:01:49]} 15. Qd3 {[%clk 0:02:11]}  Re6 {[%clk 0:01:38]} 16. a3 {[%clk 0:02:10]}  a5 {[%clk 0:01:33]} 17. Rfe1 {[%clk 0:01:51]}  Qd7 {[%clk 0:01:32]} 18. Qd2 {[%clk 0:01:39]}  a4 {[%clk 0:01:23]} 19. Ne5 {[%clk 0:01:18]}  Nxe5 {[%clk 0:01:15]} 20. Bxe5 {[%clk 0:01:12]}  Rae8 {[%clk 0:01:10]} 21. Bc3 {[%clk 0:01:10]}  Rxe1+ {[%clk 0:01:04]} 22. Rxe1 {[%clk 0:01:10]}  Rxe1+ {[%clk 0:01:04]} 23. Qxe1 {[%clk 0:01:10]}  Qe6 {[%clk 0:01:04]} 24. Qf1 {[%clk 0:00:58]}  Qe4 {[%clk 0:01:00]} 25. Kh1 {[%clk 0:00:42]}  f6 {[%clk 0:00:57]} 26. Kg1 {[%clk 0:00:40]}  Kf7 {[%clk 0:00:56]} 27. Kh1 {[%clk 0:00:36]}  Qc2 {[%clk 0:00:37]} 28. Kg1 {[%clk 0:00:34]}  Bxa3 {[%clk 0:00:29]} 29. c5 {[%clk 0:00:20]}  Bxb2 {[%clk 0:00:18]} 30. Bxb2 {[%clk 0:00:20]}  Qxb2 {[%clk 0:00:17]} 31. Qc4+ {[%clk 0:00:20]}  Kf8 {[%clk 0:00:13]} 32. Qxa4 {[%clk 0:00:20]}  dxc5 {[%clk 0:00:11]} 33. Qd7 {[%clk 0:00:20]}  Qe5 {[%clk 0:00:08]} 34. Qd8+ {[%clk 0:00:20]}  Kf7 {[%clk 0:00:09]} 35. Qd7+ {[%clk 0:00:20]}  Qe7 {[%clk 0:00:07]} 36. Qd5+ {[%clk 0:00:20]}  Kf8 {[%clk 0:00:06]} 37. Qxb7 {[%clk 0:00:20]}  Qe1+ {[%clk 0:00:06]} 38. Kh2 {[%clk 0:00:20]}  Qxf2 {[%clk 0:00:06]} 39. Qxc7 {[%clk 0:00:19]}  Qd4 {[%clk 0:00:05]} 40. Qc8+ {[%clk 0:00:19]}  Kf7 {[%clk 0:00:05]} 41. Qc7+ {[%clk 0:00:20]}  Kg6 {[%clk 0:00:05]} 42. Qg3+ {[%clk 0:00:19]}  Kh7 {[%clk 0:00:06]} 43. Qf3 {[%clk 0:00:19]}  Qe5+ {[%clk 0:00:06]} 44. Kg1 {[%clk 0:00:18]}  Qd4+ {[%clk 0:00:06]} 45. Kh2 {[%clk 0:00:19]}  Qe5+ {[%clk 0:00:07]} 46. Kg1 {[%clk 0:00:19]}  f5 {[%clk 0:00:08]} 47. Kh1 {[%clk 0:00:17]}  Qe4 {[%clk 0:00:08]} 48. Qc3 {[%clk 0:00:15]}  c4 {[%clk 0:00:08]} 49. Kh2 {[%clk 0:00:13]}  Qd3 {[%clk 0:00:07]} 50. Qc1 {[%clk 0:00:11]}  c3 {[%clk 0:00:06]} 51. Kg1 {[%clk 0:00:11]}  c2 {[%clk 0:00:06]} 52. Qf4 {[%clk 0:00:04]}  Qe4 {[%clk 0:00:05]} 53. Qc1 {[%clk 0:00:03]}  Qd3 {[%clk 0:00:04]} 54. Qf4 {[%clk 0:00:03]}  Kg6 {[%clk 0:00:04]} 55. Kh2 {[%clk 0:00:01]}  Qe4 {[%clk 0:00:03]} 56. Qc1 {[%clk 0:00:00]}  Qe5+ {[%clk 0:00:03]} 0-1

[Event "December 19 Late 2023"]
[Site "https://www.chess.com"]
[Date "2023.12.19"]
[Round "7"]
[White "Mohammad, Fahim"]
[Black "Kniazev, Igor"]
[Result "1-0"]
[Board "130"]
[TimeControl "180+1"]
[WhiteFideId "10206248"]
[BlackFideId "4136349"]
[WhiteElo "2177"]
[BlackElo "1853"]
[WhiteTeam "FRA"]
[BlackTeam "RUS"]
[WhiteClock "0:00:12"]
[BlackClock "0:00:00"]

1. d4 {[%clk 0:03:00]}  Nf6 {[%clk 0:02:59]} 2. Nf3 {[%clk 0:03:01]}  c5 {[%clk 0:03:00]} 3. d5 {[%clk 0:03:01]}  e6 {[%clk 0:02:59]} 4. c4 {[%clk 0:03:01]}  b5 {[%clk 0:02:57]} 5. dxe6 {[%clk 0:02:59]}  fxe6 {[%clk 0:02:55]} 6. Nc3 {[%clk 0:03:00]}  b4 {[%clk 0:02:54]} 7. Nb5 {[%clk 0:02:59]}  d5 {[%clk 0:02:51]} 8. e4 {[%clk 0:02:59]}  a6 {[%clk 0:02:47]} 9. e5 {[%clk 0:02:45]}  Ne4 {[%clk 0:02:35]} 10. Nd6+ {[%clk 0:02:31]}  Bxd6 {[%clk 0:02:34]} 11. exd6 {[%clk 0:02:30]}  Qxd6 {[%clk 0:02:33]} 12. Bd3 {[%clk 0:02:23]}  Nf6 {[%clk 0:02:24]} 13. Bg5 {[%clk 0:01:36]}  Nbd7 {[%clk 0:02:19]} 14. Qc2 {[%clk 0:01:34]}  Bb7 {[%clk 0:02:01]} 15. O-O-O {[%clk 0:01:33]}  O-O-O {[%clk 0:01:51]} 16. Rhe1 {[%clk 0:01:24]}  h6 {[%clk 0:01:47]} 17. Bh4 {[%clk 0:01:23]}  Qf4+ {[%clk 0:01:34]} 18. Kb1 {[%clk 0:01:15]}  d4 {[%clk 0:01:06]} 19. Bg3 {[%clk 0:01:11]}  Qg4 {[%clk 0:01:06]} 20. h3 {[%clk 0:00:59]}  Qh5 {[%clk 0:00:53]} 21. Bg6 {[%clk 0:00:34]}  d3 {[%clk 0:00:44]} 22. Qxd3 {[%clk 0:00:31]}  Ne5 {[%clk 0:00:29]} 23. Qxd8+ {[%clk 0:00:30]}  Rxd8 {[%clk 0:00:26]} 24. Rxd8+ {[%clk 0:00:31]}  Kxd8 {[%clk 0:00:26]} 25. Bxh5 {[%clk 0:00:32]}  Nxc4 {[%clk 0:00:21]} 26. Bg6 {[%clk 0:00:23]}  Bxf3 {[%clk 0:00:15]} 27. gxf3 {[%clk 0:00:22]}  Nd2+ {[%clk 0:00:15]} 28. Kc1 {[%clk 0:00:21]}  Nxf3 {[%clk 0:00:15]} 29. Rxe6 {[%clk 0:00:20]}  a5 {[%clk 0:00:14]} 30. Ra6 {[%clk 0:00:17]}  Nd4 {[%clk 0:00:08]} 31. Rxa5 {[%clk 0:00:13]}  b3 {[%clk 0:00:09]} 32. Ra8+ {[%clk 0:00:12]}  Kd7 {[%clk 0:00:07]} 33. axb3 {[%clk 0:00:12]}  Nxb3+ {[%clk 0:00:07]} 34. Kc2 {[%clk 0:00:12]}  Nd4+ {[%clk 0:00:08]} 35. Kb1 {[%clk 0:00:13]}  Nd5 {[%clk 0:00:08]} 36. Ra7+ {[%clk 0:00:12]}  Kc6 {[%clk 0:00:08]} 37. Be4 {[%clk 0:00:11]}  Kb6 {[%clk 0:00:07]} 38. Rxg7 {[%clk 0:00:11]}  Nf6 {[%clk 0:00:07]} 39. Rg6 {[%clk 0:00:10]}  Kb5 {[%clk 0:00:06]} 40. Rxf6 {[%clk 0:00:10]}  Kc4 {[%clk 0:00:07]} 41. Rxh6 {[%clk 0:00:10]}  Nb3 {[%clk 0:00:05]} 42. Bh7 {[%clk 0:00:08]}  Kd4 {[%clk 0:00:04]} 43. Rh4+ {[%clk 0:00:07]}  Kd5 {[%clk 0:00:02]} 44. Bg8+ {[%clk 0:00:07]}  Kc6 {[%clk 0:00:02]} 45. Bxb3 {[%clk 0:00:08]}  c4 {[%clk 0:00:03]} 46. Bxc4 {[%clk 0:00:08]}  Kc5 {[%clk 0:00:04]} 47. Be2 {[%clk 0:00:09]}  Kd5 {[%clk 0:00:03]} 48. Rf4 {[%clk 0:00:10]}  Ke6 {[%clk 0:00:04]} 49. h4 {[%clk 0:00:11]}  Ke7 {[%clk 0:00:00]} 50. h5 {[%clk 0:00:12]} 1-0

[Event "December 19 Late 2023"]
[Site "https://www.chess.com"]
[Date "2023.12.19"]
[Round "7"]
[White "Soderstrom, Adrian"]
[Black "Clarke, Matthew"]
[Result "1-0"]
[Board "133"]
[TimeControl "180+1"]
[WhiteFideId "1745786"]
[BlackFideId "3227804"]
[WhiteElo "2154"]
[BlackElo "2026"]
[WhiteTeam "SWE"]
[BlackTeam "AUS"]
[WhiteClock "0:02:50"]
[BlackClock "0:00:07"]

1. e4 {[%clk 0:03:00]}  e5 {[%clk 0:02:58]} 2. Nf3 {[%clk 0:03:00]}  Nc6 {[%clk 0:02:58]} 3. Bb5 {[%clk 0:03:00]}  Nf6 {[%clk 0:02:58]} 4. O-O {[%clk 0:02:58]}  Nxe4 {[%clk 0:02:58]} 5. Re1 {[%clk 0:02:58]}  Nd6 {[%clk 0:02:57]} 6. Nxe5 {[%clk 0:02:57]}  Be7 {[%clk 0:02:56]} 7. Bf1 {[%clk 0:02:56]}  Nxe5 {[%clk 0:02:43]} 8. Rxe5 {[%clk 0:02:57]}  O-O {[%clk 0:02:44]} 9. d4 {[%clk 0:02:58]}  Bf6 {[%clk 0:02:42]} 10. Bd3 {[%clk 0:02:58]}  Bxe5 {[%clk 0:02:29]} 11. dxe5 {[%clk 0:02:59]}  Ne8 {[%clk 0:02:29]} 12. Nc3 {[%clk 0:03:00]}  d6 {[%clk 0:02:04]} 13. Qh5 {[%clk 0:02:54]}  g6 {[%clk 0:02:03]} 14. Qh6 {[%clk 0:02:54]}  dxe5 {[%clk 0:01:32]} 15. Bg5 {[%clk 0:02:54]}  Qd7 {[%clk 0:00:07]} 16. Ne4 {[%clk 0:02:50]} 1-0

[Event "December 19 Late 2023"]
[Site "https://www.chess.com"]
[Date "2023.12.19"]
[Round "7"]
[White "Quirke, Jeffrey"]
[Black "Kappeler, Kaspar"]
[Result "1-0"]
[Board "137"]
[TimeControl "180+1"]
[WhiteFideId "2013029"]
[BlackFideId "1309072"]
[WhiteElo "2149"]
[BlackElo "2192"]
[WhiteTeam "USA"]
[BlackTeam "SUI"]
[WhiteClock "0:00:03"]
[BlackClock "0:00:00"]

1. e4 {[%clk 0:03:00]}  c5 {[%clk 0:02:59]} 2. c3 {[%clk 0:03:00]}  d6 {[%clk 0:02:58]} 3. d4 {[%clk 0:02:59]}  Nf6 {[%clk 0:02:58]} 4. Bd3 {[%clk 0:02:59]}  g6 {[%clk 0:02:57]} 5. Nf3 {[%clk 0:03:00]}  Bg7 {[%clk 0:02:57]} 6. h3 {[%clk 0:02:57]}  O-O {[%clk 0:02:56]} 7. O-O {[%clk 0:02:56]}  d5 {[%clk 0:02:53]} 8. e5 {[%clk 0:02:33]}  Ne4 {[%clk 0:02:52]} 9. Nbd2 {[%clk 0:02:29]}  Nxd2 {[%clk 0:02:50]} 10. Bxd2 {[%clk 0:02:27]}  cxd4 {[%clk 0:02:47]} 11. cxd4 {[%clk 0:02:26]}  Nc6 {[%clk 0:02:46]} 12. Bb5 {[%clk 0:02:17]}  Bd7 {[%clk 0:02:42]} 13. Qe2 {[%clk 0:01:47]}  a6 {[%clk 0:02:31]} 14. Bd3 {[%clk 0:01:39]}  Qb6 {[%clk 0:02:28]} 15. Be3 {[%clk 0:01:35]}  Nb4 {[%clk 0:02:26]} 16. Rfc1 {[%clk 0:01:28]}  Nxd3 {[%clk 0:02:21]} 17. Qxd3 {[%clk 0:01:28]}  Rac8 {[%clk 0:02:18]} 18. Qd2 {[%clk 0:01:25]}  Rxc1+ {[%clk 0:02:01]} 19. Rxc1 {[%clk 0:01:24]}  Rc8 {[%clk 0:02:02]} 20. Rxc8+ {[%clk 0:01:21]}  Bxc8 {[%clk 0:02:02]} 21. Ne1 {[%clk 0:01:19]}  Bf5 {[%clk 0:01:57]} 22. b3 {[%clk 0:01:15]}  h5 {[%clk 0:01:51]} 23. Nd3 {[%clk 0:01:12]}  Bxd3 {[%clk 0:01:36]} 24. Qxd3 {[%clk 0:01:13]}  Qc6 {[%clk 0:01:36]} 25. Bd2 {[%clk 0:01:09]}  f6 {[%clk 0:01:17]} 26. f4 {[%clk 0:01:05]}  fxe5 {[%clk 0:01:14]} 27. fxe5 {[%clk 0:00:58]}  Kh7 {[%clk 0:01:14]} 28. Qc3 {[%clk 0:00:45]}  Qd7 {[%clk 0:01:00]} 29. Qc5 {[%clk 0:00:36]}  Qf5 {[%clk 0:00:41]} 30. Qxd5 {[%clk 0:00:33]}  Qd3 {[%clk 0:00:24]} 31. Bg5 {[%clk 0:00:28]}  h4 {[%clk 0:00:11]} 32. Bxh4 {[%clk 0:00:16]}  Qb1+ {[%clk 0:00:10]} 33. Kh2 {[%clk 0:00:14]}  Qxa2 {[%clk 0:00:10]} 34. Bxe7 {[%clk 0:00:11]}  Qf2 {[%clk 0:00:10]} 35. Bg5 {[%clk 0:00:08]}  a5 {[%clk 0:00:06]} 36. Qe4 {[%clk 0:00:07]}  Qf7 {[%clk 0:00:05]} 37. e6 {[%clk 0:00:05]}  Qe8 {[%clk 0:00:05]} 38. d5 {[%clk 0:00:05]}  Qb5 {[%clk 0:00:03]} 39. Bf4 {[%clk 0:00:03]}  Qxb3 {[%clk 0:00:00]} 40. d6 {[%clk 0:00:03]} 1-0

[Event "December 19 Late 2023"]
[Site "https://www.chess.com"]
[Date "2023.12.19"]
[Round "7"]
[White "Oliveira, Tiago Batista"]
[Black "Desideri, Ricardo Maruchi"]
[Result "1-0"]
[Board "144"]
[TimeControl "180+1"]
[WhiteFideId "2108291"]
[BlackFideId "2110440"]
[WhiteElo "1962"]
[BlackElo "1945"]
[WhiteTeam "BRA"]
[BlackTeam "BRA"]
[WhiteClock "0:00:59"]
[BlackClock "0:01:00"]

1. d4 {[%clk 0:03:00]}  Nf6 {[%clk 0:02:50]} 2. c4 {[%clk 0:03:00]}  c5 {[%clk 0:02:51]} 3. d5 {[%clk 0:02:59]}  e6 {[%clk 0:02:51]} 4. Nc3 {[%clk 0:02:57]}  exd5 {[%clk 0:02:52]} 5. cxd5 {[%clk 0:02:57]}  d6 {[%clk 0:02:52]} 6. g3 {[%clk 0:02:58]}  g6 {[%clk 0:02:46]} 7. Bg2 {[%clk 0:02:57]}  Bg7 {[%clk 0:02:46]} 8. Nf3 {[%clk 0:02:58]}  O-O {[%clk 0:02:47]} 9. O-O {[%clk 0:02:58]}  Na6 {[%clk 0:02:46]} 10. Re1 {[%clk 0:02:52]}  Rb8 {[%clk 0:02:46]} 11. a4 {[%clk 0:02:51]}  Nb4 {[%clk 0:02:43]} 12. e4 {[%clk 0:02:49]}  Bg4 {[%clk 0:02:39]} 13. Bf4 {[%clk 0:02:41]}  Re8 {[%clk 0:02:38]} 14. Nb5 {[%clk 0:02:27]}  Bf8 {[%clk 0:02:34]} 15. h3 {[%clk 0:02:24]}  Bxf3 {[%clk 0:02:33]} 16. Bxf3 {[%clk 0:02:21]}  a6 {[%clk 0:02:31]} 17. Nc3 {[%clk 0:02:20]}  Bg7 {[%clk 0:02:18]} 18. Bg2 {[%clk 0:02:13]}  Nh5 {[%clk 0:02:10]} 19. Be3 {[%clk 0:01:56]}  b5 {[%clk 0:02:04]} 20. axb5 {[%clk 0:01:55]}  axb5 {[%clk 0:02:05]} 21. Ra7 {[%clk 0:01:54]}  Ra8 {[%clk 0:01:40]} 22. Nxb5 {[%clk 0:01:49]}  Rxa7 {[%clk 0:01:36]} 23. Nxa7 {[%clk 0:01:48]}  Qb6 {[%clk 0:01:33]} 24. Nc6 {[%clk 0:01:47]}  Nxc6 {[%clk 0:01:32]} 25. dxc6 {[%clk 0:01:47]}  Qxc6 {[%clk 0:01:33]} 26. e5 {[%clk 0:01:47]}  Qb6 {[%clk 0:01:28]} 27. exd6 {[%clk 0:01:48]}  Bxb2 {[%clk 0:01:25]} 28. d7 {[%clk 0:01:42]}  Rd8 {[%clk 0:01:25]} 29. Bg5 {[%clk 0:01:42]}  f6 {[%clk 0:01:24]} 30. Re8+ {[%clk 0:01:42]}  Kg7 {[%clk 0:01:23]} 31. Qd5 {[%clk 0:01:26]}  fxg5 {[%clk 0:01:22]} 32. Qg8+ {[%clk 0:01:22]}  Kh6 {[%clk 0:01:20]} 33. Rxd8 {[%clk 0:01:09]}  Bf6 {[%clk 0:01:19]} 34. Rb8 {[%clk 0:01:06]}  Qd6 {[%clk 0:01:03]} 35. d8=Q {[%clk 0:01:03]}  Bxd8 {[%clk 0:01:00]} 36. Rxd8 {[%clk 0:00:59]} 1-0

[Event "December 19 Late 2023"]
[Site "https://www.chess.com"]
[Date "2023.12.19"]
[Round "8"]
[White "Lazavik, Denis"]
[Black "Maksimovic, Bojan"]
[Result "1/2-1/2"]
[Board "2"]
[TimeControl "180+1"]
[WhiteFideId "13515110"]
[BlackFideId "14408120"]
[WhiteElo "2556"]
[BlackElo "2527"]
[WhiteTeam "BLR"]
[BlackTeam "BIH"]
[WhiteClock "0:00:12"]
[BlackClock "0:00:06"]

1. d4 {[%clk 0:03:00]}  g6 {[%clk 0:02:59]} 2. c4 {[%clk 0:03:00]}  Bg7 {[%clk 0:02:59]} 3. Nf3 {[%clk 0:03:01]}  d6 {[%clk 0:03:00]} 4. g3 {[%clk 0:03:01]}  Nf6 {[%clk 0:02:58]} 5. Bg2 {[%clk 0:03:02]}  O-O {[%clk 0:02:59]} 6. Nc3 {[%clk 0:03:02]}  Nbd7 {[%clk 0:03:00]} 7. O-O {[%clk 0:03:02]}  e5 {[%clk 0:03:00]} 8. e4 {[%clk 0:03:02]}  exd4 {[%clk 0:03:01]} 9. Nxd4 {[%clk 0:03:03]}  Re8 {[%clk 0:03:01]} 10. h3 {[%clk 0:03:03]}  Nc5 {[%clk 0:03:02]} 11. Re1 {[%clk 0:03:03]}  a5 {[%clk 0:03:02]} 12. Ndb5 {[%clk 0:03:03]}  Bd7 {[%clk 0:03:03]} 13. Bf4 {[%clk 0:03:00]}  Bxb5 {[%clk 0:03:03]} 14. cxb5 {[%clk 0:03:00]}  Nfd7 {[%clk 0:03:03]} 15. Qc2 {[%clk 0:02:57]}  h5 {[%clk 0:03:03]} 16. Rad1 {[%clk 0:02:54]}  h4 {[%clk 0:03:02]} 17. g4 {[%clk 0:02:54]}  Ne6 {[%clk 0:03:02]} 18. Be3 {[%clk 0:02:55]}  Be5 {[%clk 0:02:55]} 19. Nd5 {[%clk 0:02:53]}  g5 {[%clk 0:02:50]} 20. Qd2 {[%clk 0:02:46]}  c6 {[%clk 0:02:45]} 21. bxc6 {[%clk 0:02:46]}  bxc6 {[%clk 0:02:46]} 22. f4 {[%clk 0:02:43]}  cxd5 {[%clk 0:01:04]} 23. fxe5 {[%clk 0:02:43]}  d4 {[%clk 0:01:05]} 24. Bxd4 {[%clk 0:02:38]}  Nxd4 {[%clk 0:00:44]} 25. Qxd4 {[%clk 0:02:37]}  Nxe5 {[%clk 0:00:45]} 26. Qxd6 {[%clk 0:02:37]}  Qxd6 {[%clk 0:00:37]} 27. Rxd6 {[%clk 0:02:38]}  Rab8 {[%clk 0:00:25]} 28. b3 {[%clk 0:02:35]}  a4 {[%clk 0:00:25]} 29. Re3 {[%clk 0:02:28]}  axb3 {[%clk 0:00:24]} 30. axb3 {[%clk 0:02:29]}  Kg7 {[%clk 0:00:23]} 31. Bf1 {[%clk 0:02:27]}  Rb4 {[%clk 0:00:23]} 32. Rd5 {[%clk 0:02:14]}  Re7 {[%clk 0:00:15]} 33. Rb5 {[%clk 0:02:14]}  Rxb5 {[%clk 0:00:15]} 34. Bxb5 {[%clk 0:02:14]}  Rb7 {[%clk 0:00:16]} 35. Be2 {[%clk 0:02:12]}  Rb4 {[%clk 0:00:14]} 36. Kf2 {[%clk 0:02:11]}  Kf6 {[%clk 0:00:12]} 37. Ke1 {[%clk 0:02:08]}  Rd4 {[%clk 0:00:10]} 38. Bf1 {[%clk 0:01:59]}  Ng6 {[%clk 0:00:07]} 39. Bd3 {[%clk 0:01:48]}  Ke5 {[%clk 0:00:06]} 40. Kd2 {[%clk 0:01:48]}  Nf4 {[%clk 0:00:05]} 41. Kc3 {[%clk 0:01:45]}  f6 {[%clk 0:00:05]} 42. b4 {[%clk 0:01:42]}  Nxd3 {[%clk 0:00:02]} 43. Rxd3 {[%clk 0:01:42]}  Rxe4 {[%clk 0:00:03]} 44. b5 {[%clk 0:01:29]}  Re1 {[%clk 0:00:03]} 45. Kb2 {[%clk 0:00:59]}  Re2+ {[%clk 0:00:03]} 46. Ka3 {[%clk 0:00:59]}  Re1 {[%clk 0:00:04]} 47. Rb3 {[%clk 0:00:59]}  Kd6 {[%clk 0:00:03]} 48. Kb4 {[%clk 0:00:55]}  Kc7 {[%clk 0:00:03]} 49. Rf3 {[%clk 0:00:51]}  Re6 {[%clk 0:00:02]} 50. Ka5 {[%clk 0:00:51]}  Kb7 {[%clk 0:00:03]} 51. Rd3 {[%clk 0:00:51]}  Re7 {[%clk 0:00:02]} 52. Rd6 {[%clk 0:00:50]}  Rf7 {[%clk 0:00:03]} 53. Rd5 {[%clk 0:00:50]}  Rf8 {[%clk 0:00:03]} 54. Rd7+ {[%clk 0:00:48]}  Kc8 {[%clk 0:00:04]} 55. Rg7 {[%clk 0:00:44]}  f5 {[%clk 0:00:02]} 56. gxf5 {[%clk 0:00:43]}  Rxf5 {[%clk 0:00:02]} 57. Ka6 {[%clk 0:00:42]}  Rf3 {[%clk 0:00:02]} 58. Rg8+ {[%clk 0:00:37]}  Kd7 {[%clk 0:00:02]} 59. Rxg5 {[%clk 0:00:24]}  Ra3+ {[%clk 0:00:02]} 60. Kb6 {[%clk 0:00:24]}  Rxh3 {[%clk 0:00:03]} 61. Rh5 {[%clk 0:00:25]}  Rh1 {[%clk 0:00:03]} 62. Kb7 {[%clk 0:00:23]}  h3 {[%clk 0:00:04]} 63. b6 {[%clk 0:00:24]}  h2 {[%clk 0:00:05]} 64. Rh6 {[%clk 0:00:23]}  Ke7 {[%clk 0:00:05]} 65. Kb8 {[%clk 0:00:19]}  Kf7 {[%clk 0:00:06]} 66. b7 {[%clk 0:00:19]}  Kg7 {[%clk 0:00:06]} 67. Rh3 {[%clk 0:00:19]}  Kg6 {[%clk 0:00:07]} 68. Rg3+ {[%clk 0:00:15]}  Kf5 {[%clk 0:00:08]} 69. Rg2 {[%clk 0:00:15]}  Kf4 {[%clk 0:00:08]} 70. Rc2 {[%clk 0:00:11]}  Kg3 {[%clk 0:00:05]} 71. Kc7 {[%clk 0:00:10]}  Rb1 {[%clk 0:00:06]} 72. Rxh2 {[%clk 0:00:10]}  Kxh2 {[%clk 0:00:06]} 73. b8=Q {[%clk 0:00:11]}  Rxb8 {[%clk 0:00:06]} 74. Kxb8 {[%clk 0:00:12]} 1/2-1/2

[Event "December 19 Late 2023"]
[Site "https://www.chess.com"]
[Date "2023.12.19"]
[Round "8"]
[White "Khismatullin, Denis"]
[Black "Niemann, Hans Moke"]
[Result "0-1"]
[Board "3"]
[TimeControl "180+1"]
[WhiteFideId "4142578"]
[BlackFideId "2093596"]
[WhiteElo "2552"]
[BlackElo "2614"]
[WhiteTeam "RUS"]
[BlackTeam "USA"]
[WhiteClock "0:00:00"]
[BlackClock "0:00:02"]

1. e4 {[%clk 0:03:00]}  e5 {[%clk 0:02:59]} 2. Nf3 {[%clk 0:03:00]}  Nc6 {[%clk 0:02:59]} 3. Bc4 {[%clk 0:02:59]}  Nf6 {[%clk 0:02:59]} 4. d3 {[%clk 0:02:59]}  h6 {[%clk 0:02:59]} 5. O-O {[%clk 0:02:59]}  d6 {[%clk 0:02:59]} 6. c3 {[%clk 0:02:58]}  g5 {[%clk 0:03:00]} 7. Bb3 {[%clk 0:02:56]}  Bg7 {[%clk 0:02:59]} 8. Re1 {[%clk 0:02:54]}  O-O {[%clk 0:03:00]} 9. Na3 {[%clk 0:02:51]}  a5 {[%clk 0:02:49]} 10. Nc4 {[%clk 0:02:48]}  g4 {[%clk 0:02:44]} 11. Nfd2 {[%clk 0:02:46]}  d5 {[%clk 0:02:44]} 12. Ne3 {[%clk 0:02:44]}  d4 {[%clk 0:02:42]} 13. Nf5 {[%clk 0:02:38]}  Bxf5 {[%clk 0:02:34]} 14. exf5 {[%clk 0:02:36]}  dxc3 {[%clk 0:02:35]} 15. bxc3 {[%clk 0:02:37]}  Qxd3 {[%clk 0:02:33]} 16. Ne4 {[%clk 0:02:31]}  Qxd1 {[%clk 0:02:32]} 17. Bxd1 {[%clk 0:02:32]}  h5 {[%clk 0:02:21]} 18. Rb1 {[%clk 0:02:22]}  Nxe4 {[%clk 0:01:50]} 19. Rxe4 {[%clk 0:02:15]}  Ne7 {[%clk 0:01:47]} 20. Rxb7 {[%clk 0:02:01]}  Rfd8 {[%clk 0:01:29]} 21. Bc2 {[%clk 0:01:59]}  Nd5 {[%clk 0:01:18]} 22. Rc4 {[%clk 0:01:42]}  e4 {[%clk 0:01:18]} 23. Bg5 {[%clk 0:01:24]}  Bf6 {[%clk 0:01:04]} 24. Bxf6 {[%clk 0:01:16]}  Nxf6 {[%clk 0:01:05]} 25. Rcxc7 {[%clk 0:01:07]}  Rd2 {[%clk 0:01:05]} 26. Bb3 {[%clk 0:01:04]}  a4 {[%clk 0:01:04]} 27. Bxf7+ {[%clk 0:01:03]}  Kh8 {[%clk 0:01:03]} 28. Rb1 {[%clk 0:00:51]}  Rad8 {[%clk 0:01:01]} 29. g3 {[%clk 0:00:45]}  a3 {[%clk 0:00:34]} 30. Re1 {[%clk 0:00:34]}  Rb2 {[%clk 0:00:30]} 31. Re7 {[%clk 0:00:27]}  Rdd2 {[%clk 0:00:29]} 32. Rf1 {[%clk 0:00:27]}  Kg7 {[%clk 0:00:19]} 33. Bb3+ {[%clk 0:00:26]}  Kh6 {[%clk 0:00:18]} 34. c4 {[%clk 0:00:19]}  Rd7 {[%clk 0:00:08]} 35. Re6 {[%clk 0:00:17]}  Kg5 {[%clk 0:00:08]} 36. c5 {[%clk 0:00:17]}  Kxf5 {[%clk 0:00:05]} 37. Ra6 {[%clk 0:00:16]}  Rc7 {[%clk 0:00:03]} 38. c6 {[%clk 0:00:16]}  Kg6 {[%clk 0:00:02]} 39. Rc1 {[%clk 0:00:10]}  Nh7 {[%clk 0:00:02]} 40. Rb6 {[%clk 0:00:06]}  Ng5 {[%clk 0:00:02]} 41. Rb7 {[%clk 0:00:06]}  Rc8 {[%clk 0:00:01]} 42. c7 {[%clk 0:00:05]}  Nh3+ {[%clk 0:00:01]} 43. Kf1 {[%clk 0:00:03]}  Rxf2+ {[%clk 0:00:01]} 44. Ke1 {[%clk 0:00:04]}  e3 {[%clk 0:00:01]} 45. Rc6+ {[%clk 0:00:04]}  Kg7 {[%clk 0:00:01]} 46. Rb8 {[%clk 0:00:03]}  Ng1 {[%clk 0:00:02]} 47. Rxc8 {[%clk 0:00:00]}  Nf3+ {[%clk 0:00:02]} 0-1